{"text_format":"1","workbook":"xlsx","n_sheets":1,"sheets":["ProCold_Calculator"],"not_rendered":{"charts":1,"images":0,"macros":1,"external_links":0,"defined_names":4,"comments":0,"pivot_tables":0},"unopened":[],"bounds":{"document_bytes":16777216,"sheet_cells":100000,"rows_first":2000,"rows_last":500,"rows_between":2000,"halvings":0,"cell_chars":16384,"cell_head_chars":4096},"cells_cut":0,"cells_raw":0,"read":"whole","date_system":"1900"}

{"sheet":"ProCold_Calculator","index":0,"n_rows":256,"n_cols":95,"rows_kept":256,"cut":false,"hidden":false,"merged":[[302,12,302,13],[303,12,303,13],[304,12,304,13],[305,12,305,13],[306,12,306,13],[307,12,307,13],[308,12,308,13],[296,12,296,13],[297,12,297,13],[298,12,298,13],[299,12,299,13],[300,12,300,13],[301,12,301,13],[316,12,316,13],[317,12,317,13],[318,12,318,13],[319,12,319,13],[309,12,309,13],[310,12,310,13],[311,12,311,13],[312,12,312,13],[313,12,313,13],[314,12,314,13],[315,12,315,13],[295,12,295,13],[284,12,284,13],[285,12,285,13],[286,12,286,13],[287,12,287,13],[288,12,288,13],[289,12,289,13],[278,12,278,13],[279,12,279,13],[280,12,280,13],[281,12,281,13],[282,12,282,13],[283,12,283,13],[290,12,290,13],[291,12,291,13],[292,12,292,13],[293,12,293,13],[294,12,294,13],[272,12,272,13],[273,12,273,13],[274,12,274,13],[275,12,275,13],[276,12,276,13],[277,12,277,13],[266,12,266,13],[267,12,267,13],[268,12,268,13],[269,12,269,13],[270,12,270,13],[271,12,271,13],[260,12,260,13],[261,12,261,13],[262,12,262,13],[263,12,263,13],[264,12,264,13],[265,12,265,13],[73,12,73,14],[71,12,71,13],[256,12,256,13],[257,12,257,13],[258,12,258,13],[259,12,259,13],[72,12,72,13],[1,11,1,18],[67,12,67,13],[69,12,69,13],[5,22,5,30],[3,22,3,30],[31,23,31,28],[31,11,31,12],[14,25,15,25],[27,29,27,30],[23,23,23,24],[23,27,23,28],[18,25,19,25],[18,26,19,26],[23,25,23,26],[68,12,68,14],[22,22,22,30],[14,26,15,26],[16,22,17,22],[16,25,17,25],[16,26,17,26],[11,22,11,30],[9,22,9,30],[23,29,23,30],[18,22,19,22],[51,87,51,89],[51,84,51,86],[67,38,67,40],[67,42,67,44],[32,22,50,30],[70,12,70,13],[4,43,4,45],[12,22,13,22],[12,25,13,25],[12,26,13,26],[14,22,15,22],[4,39,4,41],[10,25,10,28]]}
[]
[null,null,null,null,null,null,null,null,null,null,null,"DATENBANK"]
[null,null,null,null,null,null,null,null,null,null,null,null,null,null,null,null,null,null,null,null,null,null,"Country-Selection",null,null,"EU"]
[null,null,null,null,null,null,null,null,null,null,null,null,null,null,null,null,null,null,null,null,null,null,{"$f":"VLOOKUP(Z3,AM54:BH64,20,FALSE)","v":"Professional Storage Cabinets"}]
[]
[null,null,null,null,null,null,null,null,null,null,null,null,null,null,null,null,null,null,null,null,null,null,{"$f":"VLOOKUP(Z3,AM54:BD64,13,FALSE)","v":"Calculation settings"}]
[null,null,null,null,null,null,null,null,null,null,null,null,null,null,null,null,null,null,null,null,null,null,{"$f":"VLOOKUP(Z3,AM54:BD64,4,FALSE)","v":"Electricity tariff"},null,null,0.2,{"$f":"VLOOKUP(Z3,AM54:BQ64,29,FALSE)","v":"€/kWh"},{"$f":"VLOOKUP(Z3,AM54:BS64,33,FALSE)","v":"Default:"},{"$f":"VLOOKUP(Z3,AM54:BT64,34,FALSE)","v":"0.20"}]
[null,null,null,null,null,null,null,null,null,null,null,null,null,null,null,null,null,null,null,null,null,null,{"$f":"VLOOKUP(Z3,AM54:BE64,19,FALSE)","v":"CO2 emission factor"},null,null,0.44,"kg CO2/kWh",{"$f":"VLOOKUP(Z3,AM54:BS64,33,FALSE)","v":"Default:"},{"$f":"VLOOKUP(Z3,AM54:CP64,56,FALSE)","v":"0.44"}]
[]
[null,null,null,null,null,null,null,null,null,null,null,null,null,null,null,null,null,null,null,null,null,null,{"$f":"VLOOKUP(Z3,AM54:BD64,2,FALSE)","v":"Select product type"}]
[null,null,null,null,null,null,null,null,null,null,null,"Sprache",{"$f":"MATCH(Z3,AM54:AM64,0)","v":1},1,null,null,null,null,null,null,null,null,null,null,null,"Storage Counter Refrigerators",null,null,null,null,null,null,null,null,null,null,null,null,null,"\nDies ist die SVERWEIS-Datenbank - hier holt sich das Tool die benötigten Beschriftungen bzw. Einheiten - welche länderabhängig sind. Für die englisch u. deutssprachigen Länder sind die Bezeichungen schon festgelegt.\nFür die anderen noch ausstehenen Länder (z.B. Iatlien, Frankreich, usw.) wurde als Platzhalter immer der englische Begriff unter Anführungszeichen in der Datenbank hinterlegt - dieser kann dann durch den jweiligen Partner selber in der SVERWEIS Datenbank auf die richtige Sprache umgeändert werden..."]
[null,null,null,null,null,null,null,null,null,null,null,"Zeile 1",{"$f":"ROW($BI$54)","v":54},54,54,null,null,null,null,null,null,null,{"$f":"VLOOKUP(Z3,AM54:BG64,21,FALSE)","v":"Input product data"}]
[null,null,null,null,null,null,null,null,null,null,null,"Spalte vorher",{"$f":"COLUMN($BI$54)+IFERROR(MATCH($Z$11,$BI$54:$BN$54,0),IFERROR(MATCH($Z$11,$BI$55:$BN$55,0),IFERROR(MATCH($Z$11,$BI$56:$BN$56,0),IFERROR(MATCH($Z$11,$BI$61:$BN$61,0),IFERROR(MATCH($Z$11,$BI$62:$BN$62,0),IFERROR(MATCH($Z$11,$BI$63:$BN$63,0),MATCH($Z$11,$BI$64:$BN$64,0)))))))","v":62},52,null,null,null,null,null,null,null,null,{"$f":"VLOOKUP(Z3,AM54:BD64,9,FALSE)","v":"Net volume"},null,null,608,"L"]
[]
[null,null,null,null,null,null,null,null,null,null,null,null,null,null,null,null,null,null,null,null,null,null,{"$f":"VLOOKUP(Z3,AM54:BU64,35,FALSE)","v":"Annual Energy Consumption (AEC = TEC * 365)"},null,null,1617,"kWh/a"]
[]
[null,null,null,null,null,null,null,null,null,null,null,null,null,null,null,null,null,null,null,null,null,null,{"$f":"VLOOKUP(Z3,AM54:BU64,18,FALSE)","v":"Number of products"},null,null,1]
[]
[null,null,null,null,null,null,null,null,null,null,null,"Table coefficient M a. N",null,null,null,null,"kg CO2e/l ",null,null,null,null,null,{"$f":"VLOOKUP(Z3,AM54:BU64,10,FALSE)","v":"Service life"},null,null,8,{"$f":"VLOOKUP(Z3,AM54:CC64,30,FALSE)","v":"years"}]
[null,null,null,null,null,null,null,null,null,null,null,"category","M","N","EEI",null,"Graue Emissionen","Geräte"]
[null,null,null,null,null,null,null,null,null,null,null,{"$f":"INDEX($BI$54:$BI$64,$M$11)","v":"Storage Counter Refrigerators"},2.5550000000000002,1790,{"$f":"$P$73","v":21.074999999999999},{"$f":"VLOOKUP(Z3,AM54:CA64,36,FALSE)","v":"„Find efficient Storage Counter Refrigerators online“"},2.42,{"$f":"VLOOKUP(Z3,AM54:CL64,47,FALSE)","v":"http://www.pro-cold.eu/english/storage-refrigerators/storage-counter-refrigerators.html"},null,null,null,null,{"$f":"VLOOKUP(Z3,AM54:BD64,17,FALSE)","v":"Your product price"},null,null,2000,{"$f":"VLOOKUP(Z3,AM54:BQ64,31,FALSE)","v":"€"}]
[null,null,null,null,null,null,null,null,null,null,null,{"$f":"INDEX($BJ$54:$BJ$64,$M$11)","v":"Storage Refrigerators 1 - door"},1.643,609,{"$f":"$P$100","v":42.185769230769218},{"$f":"VLOOKUP(Z3,AM54:CA64,37,FALSE)","v":"„Find efficient Storage Refrigerators 1 - door online“"},2.42,{"$f":"VLOOKUP(Z3,AM54:CL64,48,FALSE)","v":"http://www.pro-cold.eu/english/storage-refrigerators/storage-refrigerators-1-door-2.html"},null,null,null,null,{"$f":"VLOOKUP(Z3,AM54:BD64,16,FALSE)","v":"Top product price"},null,null,2500,{"$f":"VLOOKUP(Z3,AM54:BQ64,31,FALSE)","v":"€"}]
[null,null,null,null,null,null,null,null,null,null,null,{"$f":"INDEX($BK$54:$BK$64,$M$11)","v":"Storage Refrigerators 2 - doors"},1.643,609,{"$f":"$P$109","v":51.850000000000009},{"$f":"VLOOKUP(Z3,AM54:CA64,38,FALSE)","v":"„Find efficient Storage Refrigerators 2 - doors online“"},2.42,{"$f":"VLOOKUP(Z3,AM54:CL64,49,FALSE)","v":"http://www.pro-cold.eu/english/storage-refrigerators/storage-refrigerators-2-doors-2.html"},null,null,null,null,{"$f":"VLOOKUP(Z3,AM54:BH64,22,FALSE)","v":"Product comparison over life time"}]
[null,null,null,null,null,null,null,null,null,null,null,{"$f":"INDEX($BL$54:$BL$64,$M$11)","v":"Storage Counter Freezers"},5.84,2380,{"$f":"$P$112","v":22.35},{"$f":"VLOOKUP(Z3,AM54:CA64,39,FALSE)","v":"„Find efficient Storage Counter Freezers online“"},5.8,{"$f":"VLOOKUP(Z3,AM54:CL64,50,FALSE)","v":"http://www.pro-cold.eu/english/storage-freezers/storage-counter-freezers-2.html"},null,null,null,null,null,{"$f":"VLOOKUP(Z3,AM54:BD64,7,FALSE)","v":"Energy consumption"},null,{"$f":"VLOOKUP(Z3,AM54:CV64,53,FALSE)","v":"Purchase price"},null,{"$f":"VLOOKUP(Z3,AM54:BD64,8,FALSE)","v":"Energy costs"},null,{"$f":"VLOOKUP(Z3,AM54:BD64,11,FALSE)","v":"CO2 emissions"}]
[null,null,null,null,null,null,null,null,null,null,null,{"$f":"INDEX($BM$54:$BM$64,$M$11)","v":"Storage Freezers 1 - door"},4.9279999999999999,1472,{"$f":"$P$133","v":53.33},{"$f":"VLOOKUP(Z3,AM54:CA64,40,FALSE)","v":"„Find efficient Storage Freezers 1 - door online“"},5.8,{"$f":"VLOOKUP(Z3,AM54:CL64,51,FALSE)","v":"http://www.pro-cold.eu/english/storage-freezers/storage-freezers-1-door-2.html"},null,null,null,null,{"$f":"VLOOKUP(Z3,AM54:BD64,3,FALSE)","v":"Your product"},{"$f":"$Z$15*$Z$19*$Z$17","v":12936},"kWh",{"$f":"$Z$21*$Z$17","v":2000},{"$f":"VLOOKUP(Z3,AM54:CE64,31,FALSE)","v":"€"},{"$f":"$X$25*$Z$7","v":2587.2000000000003},{"$f":"VLOOKUP(Z3,AM54:BQ64,31,FALSE)","v":"€"},{"$f":"($X$25*$Z$8)/1000","v":5.69184},"t"]
[null,null,null,null,null,null,null,null,null,null,null,{"$f":"INDEX($BN$54:$BN$64,$M$11)","v":"Storage Freezers 2 - doors"},4.9279999999999999,1472,{"$f":"$P$139","v":64.3},{"$f":"VLOOKUP(Z3,AM54:CA64,41,FALSE)","v":"„Find efficient Storage Freezers 2 - doors online“"},5.8,{"$f":"VLOOKUP(Z3,AM54:CL64,52,FALSE)","v":"http://www.pro-cold.eu/english/storage-freezers/storage-freezers-2-doors-2.html"},null,null,null,null,{"$f":"VLOOKUP(Z3,AM54:BD64,5,FALSE)","v":"Top product"},{"$f":"(($X$30*$M$35)/100)*$Z$19*$Z$17","v":5637.0398399999995},"kWh",{"$f":"$Z$22*$Z$17","v":2500},{"$f":"VLOOKUP(Z3,AM54:CE64,31,FALSE)","v":"€"},{"$f":"$X$26*$Z$7","v":1127.407968},{"$f":"VLOOKUP(Z3,AM54:BQ64,31,FALSE)","v":"€"},{"$f":"($X$26*$Z$8)/1000","v":2.4802975296000001},"t"]
[null,null,null,null,null,null,null,null,null,null,null,null,null,null,null,null,null,null,null,null,null,null,{"$f":"VLOOKUP(Z3,AM54:BD64,6,FALSE)","v":"Total Savings"},{"$f":"$X$25-$X$26","v":7298.9601600000005},"kWh",null,null,{"$f":"($Z$25+$AB$25)-($Z$26+$AB$26)","v":959.79203200000075},{"$f":"VLOOKUP(Z3,AM54:BQ64,31,FALSE)","v":"€"},{"$f":"$AD$25-$AD$26","v":3.2115424704},"t"]
[null,null,null,null,null,null,null,null,null,null,null,null,null,null,null,null,null,null,null,null,null,null,null,{"$f":"VLOOKUP(Z3,AM54:BD64,14,FALSE)","v":"Energy Efficiency Index"},null,null,{"$f":"VLOOKUP(Z3,AM54:BD64,15,FALSE)","v":"Energy Class"},null,null,{"$f":"VLOOKUP(Z3,AM54:CQ64,57,FALSE)","v":"Grey CO2 emissions"}]
[null,null,null,null,null,null,null,null,null,null,null,null,null,null,null,null,null,null,null,null,null,null,{"$f":"VLOOKUP(Z3,AM54:CO64,54,FALSE)","v":"Your product"},{"$f":"($Z$15/$M$35)*100","v":48.36336228555021},null,null,{"$f":"IF($X$29<10,\"A+++\",IF($X$29<15,\"A++\",IF($X$29<20,\"A+\",IF($X$29<30,\"A\",IF($X$29<40,\"B\",IF($X$29<55,\"C\",IF($X$29<75,\"D\",IF($X$29<85,\"E\",\"F-G\"))))))))","v":"C"},null,null,{"$f":"($Z$13*$P$33)/1000","v":1.47136},"t"]
[null,null,null,null,null,null,null,null,null,null,null,null,null,null,null,null,null,null,null,null,null,null,{"$f":"VLOOKUP(Z3,AM54:CO64,55,FALSE)","v":"Top product"},{"$f":"VLOOKUP(Z11,L21:O26,4,FALSE)","v":21.074999999999999},null,null,{"$f":"IF($X$30<10,\"A+++\",IF($X$30<15,\"A++\",IF($X$30<20,\"A+\",IF($X$30<30,\"A\",IF($X$30<40,\"B\",IF($X$30<55,\"C\",IF($X$30<75,\"D\",IF($X$30<85,\"E\",\"F-G\"))))))))","v":"A"}]
[]
[null,null,null,null,null,null,null,null,null,null,null,"Auswahl:","M","N",null,"Auswahl:",null,null,null,null,null,null,{"$f":"VLOOKUP(Z3,AM54:BR64,32,FALSE)","v":"Link"},{"$f":"HYPERLINK(VLOOKUP(Z11,L21:R26,7,FALSE),VLOOKUP(Z11,L21:R26,5,FALSE))","v":"„Find efficient Storage Counter Refrigerators online“"}]
[null,null,null,null,null,null,null,null,null,null,null,null,{"$f":"VLOOKUP(Z11,L21:N26,2,FALSE)","v":2.5550000000000002},{"$f":"VLOOKUP(Z11,L21:N26,3,FALSE)","v":1790},null,{"$f":"VLOOKUP(Z11,L21:Q26,6,FALSE)","v":2.42},null,null,null,null,null,null,{"$f":"VLOOKUP(Z3,AM54:CF64,46,FALSE)","v":"Short description:\nThis tool is designed to help the buyers to save on the purchase of new refrigerators and freezers (mainly in the commercial sector), energy and costs.\n\nWhat follows is a short step by step guide:\nTo enable a cost comparison between the existing refrigerators and the new energy efficient devices  - the tool nees some input data (cells with gray background!)\n\n1) The first thing is to select the right country with the help of a drop down menu (eg Austria) - so that the language can be set automatically\n2) Select the existing refrigerator or freezer with the help of the dorp down menu (eg Storage Counter Refrigerators) \n3) Fill in the Country-specific tariff and CO2 emission factor (eg 0.44 kgCO2/kWh)\n4) Fill in the nominal volume of the respective refrigerator or freezer (eg 315 L) - also possible with the slider\n5) Add the anual energy consumption in [kWh/a] (eg 1533 kWh/a) - also possible with the slider\n6) Possibility to enter several products of the same category (eg 3x Storage Counter Refrigerator)\n7) Entering the service life of your device (eg 8 years)\n8) Option to indicate the purchase prices of the existing and the new efficient device (eg € 1,000 - € or 1200 €)\n\nWith this information, the tool can calculate the total cost of ownership and gives out the result in the green highlighted cell (this is also illustrated in the graph). The total energy saved and the CO2 emissions related to the service life are also calculated by the tool (cells with green background). Using the tip-links, you can instantly find the most efficient devices for the selected product category\n\n"}]
[]
[null,null,null,null,null,null,null,null,null,null,null,"SAEC",{"$f":"$M$33*$Z$13+$N$33","v":3343.44}]
[]
[null,null,null,null,null,null,null,null,null,null,null,null,null,null,null,"Diagramm - Beschriftungen:"]
[null,null,null,null,null,null,null,null,null,null,null,"Formeln",null,null,null,{"$f":"VLOOKUP(Z3,AM54:CD64,42,FALSE)","v":"Comparison of Total Costs"}]
[null,null,null,null,null,null,null,null,null,null,null,"EEI","(AEC/SAEC) x 100",null,null,{"$f":"VLOOKUP(Z3,AM54:CD64,43,FALSE)","v":"in €"}]
[null,null,null,null,null,null,null,null,null,null,null,"AEC","E24h x 365"]
[null,null,null,null,null,null,null,null,null,null,null,"SAEC","M x Vn + N"]
[]
[]
[null,null,null,null,null,null,null,null,null,null,null,"Energy efficiency class","EEI ","siehe Seite 14 labeling.pdf"]
[null,null,null,null,null,null,null,null,null,null,null,"A+++","EEI < 10"]
[null,null,null,null,null,null,null,null,null,null,null,"A++","10 ≤ EEI < 15"]
[null,null,null,null,null,null,null,null,null,null,null,"A+","15 ≤ EEI < 20",null,null,"Hilfsrechnung Kosten für Diagramm:"]
[null,null,null,null,null,null,null,null,null,null,null,"A","20 ≤ EEI < 30",null,null,"Bestehendes Prod.",null,{"$f":"$Z$25+$AB$25","v":4587.2000000000007}]
[null,null,null,null,null,null,null,null,null,null,null,"B","30 ≤ EEI < 40",null,null,"Topprodukt",null,{"$f":"$Z$26+$AB$26","v":3627.407968}]
[null,null,null,null,null,null,null,null,null,null,null,"C","40 ≤ EEI < 55"]
[null,null,null,null,null,null,null,null,null,null,null,"D","55 ≤ EEI < 75"]
[null,null,null,null,null,null,null,null,null,null,null,"E","75 ≤ EEI < 85",null,null,null,null,null,null,null,null,null,null,null,null,null,null,null,null,null,null,null,null,null,null,null,null,null,null,null,null,null,null,null,null,null,null,null,null,null,null,null,null,null,null,null,null,null,null,null,null,null,null,null,null,null,null,null,null,null,null,null,null,null,null,null,null,null,null,null,null,null,null,null,"Refrigerators",null,null,"Freezers"]
[null,null,null,null,null,null,null,null,null,null,null,"F","85 ≤ EEI < 95",null,null,null,null,null,null,null,null,null,null,null,null,null,null,null,null,null,null,null,null,null,null,null,null,null,null,null,null,null,null,null,null,null,null,null,null,null,null,null,null,null,null,null,null,null,null,null,null,null,null,null,null,null,null,null,null,null,null,null,null,null,null,null,null,null,null,null,null,null,null,null,"Tip-links: different languages - counter","Tip-links: different languages - 1 door","Tip-links: different languages - 2 doors","Tip-links: different languages - counter","Tip-links: different languages - 1 door","Tip-links: different languages - 2 doors"]
[null,null,null,null,null,null,null,null,null,null,null,"G","95 ≤ EEI < 115",null,null,null,null,null,null,null,null,null,null,null,null,null,null,null,null,null,null,null,null,null,null,null,null,null,"EU","Select product type","Your product","Electricity tariff","Top product","Total Savings","Energy consumption","Energy costs","Net volume","Service life","CO2 emissions","Top product","Calculation settings","Energy Efficiency Index","Energy Class","Top product price","Your product price","Number of products","CO2 emission factor","Professional Storage Cabinets","Input product data","Product comparison over life time","Storage Counter Refrigerators","Storage Refrigerators 1 - door","Storage Refrigerators 2 - doors","Storage Counter Freezers","Storage Freezers 1 - door","Storage Freezers 2 - doors","€/kWh","years","€","Link","Default:","0.20","Annual Energy Consumption (AEC = TEC * 365)","„Find efficient Storage Counter Refrigerators online“","„Find efficient Storage Refrigerators 1 - door online“","„Find efficient Storage Refrigerators 2 - doors online“","„Find efficient Storage Counter Freezers online“","„Find efficient Storage Freezers 1 - door online“","„Find efficient Storage Freezers 2 - doors online“","Comparison of Total Costs","in €","http://www.pro-cold.eu/","Purchase price","Short description:\nThis tool is designed to help the buyers to save on the purchase of new refrigerators and freezers (mainly in the commercial sector), energy and costs.\n\nWhat follows is a short step by step guide:\nTo enable a cost comparison between the existing refrigerators and the new energy efficient devices  - the tool nees some input data (cells with gray background!)\n\n1) The first thing is to select the right country with the help of a drop down menu (eg Austria) - so that the language can be set automatically\n2) Select the existing refrigerator or freezer with the help of the dorp down menu (eg Storage Counter Refrigerators) \n3) Fill in the Country-specific tariff and CO2 emission factor (eg 0.44 kgCO2/kWh)\n4) Fill in the nominal volume of the respective refrigerator or freezer (eg 315 L) - also possible with the slider\n5) Add the anual energy consumption in [kWh/a] (eg 1533 kWh/a) - also possible with the slider\n6) Possibility to enter several products of the same category (eg 3x Storage Counter Refrigerator)\n7) Entering the service life of your device (eg 8 years)\n8) Option to indicate the purchase prices of the existing and the new efficient device (eg € 1,000 - € or 1200 €)\n\nWith this information, the tool can calculate the total cost of ownership and gives out the result in the green highlighted cell (this is also illustrated in the graph). The total energy saved and the CO2 emissions related to the service life are also calculated by the tool (cells with green background). Using the tip-links, you can instantly find the most efficient devices for the selected product category\n\n","http://www.pro-cold.eu/english/storage-refrigerators/storage-counter-refrigerators.html","http://www.pro-cold.eu/english/storage-refrigerators/storage-refrigerators-1-door-2.html","http://www.pro-cold.eu/english/storage-refrigerators/storage-refrigerators-2-doors-2.html","http://www.pro-cold.eu/english/storage-freezers/storage-counter-freezers-2.html","http://www.pro-cold.eu/english/storage-freezers/storage-freezers-1-door-2.html","http://www.pro-cold.eu/english/storage-freezers/storage-freezers-2-doors-2.html","Purchase price","Your product","Top product","0.44","Grey CO2 emissions"]
[null,null,null,null,null,null,null,null,null,null,null,null,null,null,null,null,null,null,null,null,null,null,null,null,null,null,null,null,null,null,null,null,null,null,null,null,null,null,"Austria","Auswahl des Produkttyps","Ihr Produkt","Stromtarif","Top Produkt","Gesamte Ersparnis","Energieverbrauch","Energiekosten","Netto Volumen","Nutzungsdauer","CO2 Emissionen","Top Produkt","Berechnungseinstellungen","Energie Effizienz Index","Energie Effizienz Klasse","Top Produkt Preis","Ihr Produkt Preis","Anzahl Geräte","CO2 Emissonsfaktor","Professionelle Lagerkühlgeräte","Input Produktdaten","Produktvergleich bezogen auf die Lebensdauer","Lager-Kühlgeräte Unterbau","Lager-Kühlschränke 1 - türig","Lager-Kühlschränke 2 - türig","Lager-Tiefkühlgeräte Unterbau","Lager-Tiefkühlschränke 1-türig","Lager-Tiefkühlschränke 2-türig","€/kWh","Jahre","€","Tipplink","Default:","0.12","Jahresenergieverbrauch (AEC = TEC * 365)","\"Finde effiziente Lager-Kühlgeräte (Unterbau) online\"","\"Finde effiziente Lager-Kühlschränke 1 - türig online\"","\"Finde effiziente Lager-Kühlschränke 2-türig online\"","\"Finde effiziente Lager-Tiefkühlgeräte (Unterbau) online\"","\"Finde effiziente Lager-Tiefkühlschränke 1 - türig online\"","\"Finde effiziente Lager-Tiefkühlschränke 2 - türig online\"","Gesamtkosten Vergleich","in €","http://www.topprodukte.at/","Kaufpreis","Kurzbeschreibung:\nDieses Rechentool soll dem Einkäufer helfen, bei der Anschaffung neuer Kühl- und Gefriergeräte (vorwiegend im gewerblichen Bereich), Energie und Kosten zu sparen.\n\nEs folgt nun eine kurze Schritt-für-Schritt-Anleitung:\nUm einen Kostenvergleich zwischen den im Unternehmen bestehenden Kühlgeräten und den neu anzuschaffenden, energieeffizienten Geräten ermöglichen zu können, benötigt das Tool einige Inputdaten (grau hinterlegten Felder!)\n\n1) Als erstes muss das jeweilige Land über das Dropdown-Menü ausgewählt werden (z.B. Austria) - damit wir automatisch die Sprache eingestellt\n2) Auswählen des im Bestand vorhandenen Kühl- bzw. Gefriergeräts über das Dropdownmenü (z.B. Lager-Kühlgeräte Unterbau)\n3) Länderabhängigen Stromtarif und CO2 Emissionsfaktor angeben (z.B. 0,44 kgCO2/kWh)\n4) Angabe des Nettovolumens des jeweiligen Kühl- bzw. Gefriergeräts (z.B. 315 L) - auch mit dem Schieber möglich\n5) Angabe des Jahresnergieverbauchs in [kWh/a] des Geräts (z.B. 1533 kWh/a) - auch mit dem Schieber möglich\n6) Möglichkeit zur Eingabe mehrerer Produkte der selben Kategorie (z.B. 3x Lager-Kühlgerät Unterbau)\n7) Eingabe der gesamten Nutzungdauer des Geräts (z.B. 8 Jahre)\n8) Möglichkeit zur Angabe der Kaufpreise des bestehenden bzw. des neu anzuschaffenden Geräts (z.B. € 1.000,--  € bzw. 1200 €)\n\nMit diesen Angaben kann das Tool die Total Cost of Ownership berechnen und gibt das Ergebnis in der grün hinterlegten Zelle aus (dies wird auch in einem Diagramm veranschaulicht).\nAuch die gesamte eingesparte Energie und die CO2 Emissionen bezogen auf die Nutzungdauer berechnet dieses Tool (grün hintelegte Zellen). Mithilfe des Tipplinks können Sie sofort für die ausgewählte Produktkategorie die effizientesten Geräte finden.","http://www.topprodukte.at/de/Products-Lists/topproductscat1/188/topproductscat2/541/topproductscat3/542/topprodukte_sort_listing/x/topprodukte_sort_direction/x/topprodukte_how_many_ds/1.html","http://www.topprodukte.at/de/Products-Lists/topproductscat1/188/topproductscat2/541/topproductscat3/543/topprodukte_sort_listing/x/topprodukte_sort_direction/x/topprodukte_how_many_ds/1.html","http://www.topprodukte.at/de/Products-Lists/topproductscat1/188/topproductscat2/541/topproductscat3/544/topprodukte_sort_listing/x/topprodukte_sort_direction/x/topprodukte_how_many_ds/1.html","http://www.topprodukte.at/de/Products-Lists/topproductscat1/188/topproductscat2/541/topproductscat3/546/topprodukte_sort_listing/x/topprodukte_sort_direction/x/topprodukte_how_many_ds/1.html","http://www.topprodukte.at/de/Products-Lists/topproductscat1/188/topproductscat2/541/topproductscat3/547/topprodukte_sort_listing/x/topprodukte_sort_direction/x/topprodukte_how_many_ds/1.html","http://www.topprodukte.at/de/Products-Lists/topproductscat1/188/topproductscat2/541/topproductscat3/548/topprodukte_sort_listing/x/topprodukte_sort_direction/x/topprodukte_how_many_ds/1.html","Kaufpreis","Ihr Produkt","Top Produkt","0.44","Graue CO2 Emissionen"]
[null,null,null,null,null,null,null,null,null,null,null,null,{"$f":"VLOOKUP(Z3,AM54:BD64,3,FALSE)","v":"Your product"},{"$f":"VLOOKUP(Z3,AM54:BD64,5,FALSE)","v":"Top product"},null,null,null,null,null,null,null,null,null,null,null,null,null,null,null,null,null,null,null,null,null,null,null,null,"CH_DE","Auswahl des Produkttyps","Ihr Produkt","Stromtarif","Top Produkt","Gesamte Ersparnis","Energieverbrauch","Energiekosten","Netto Volumen","Nutzungsdauer","CO2 Emissionen","Top Produkt","Berechnungseinstellungen","Energie Effizienz Index","Energie Effizienz Klasse","Top Produkt Preis","Ihr Produkt Preis","Anzahl Geräte","CO2 Emissonsfaktor","Professionelle Lagerkühlgeräte","Input Produktdaten","Produktvergleich bezogen auf die Lebensdauer","Lager-Kühlgeräte Unterbau","Lager-Kühlschränke 1 - türig","Lager-Kühlschränke 2 - türig","Lager-Tiefkühlgeräte Unterbau","Lager-Tiefkühlschränke 1-türig","Lager-Tiefkühlschränke 2-türig","CHF/kWh","Jahre","CHF","Tipplink","Default:","0.20","Jahresenergieverbrauch (AEC = TEC * 365)","\"Finde effiziente Lager-Kühlgeräte (Unterbau) online\"","\"Finde effiziente Lager-Kühlschränke 1 - türig online\"","\"Finde effiziente Lager-Kühlschränke 2-türig online\"","\"Finde effiziente Lager-Tiefkühlgeräte (Unterbau) online\"","\"Finde effiziente Lager-Tiefkühlschränke 1 - türig online\"","\"Finde effiziente Lager-Tiefkühlschränke 2 - türig online\"","Gesamtkosten Vergleich","in CHF","http://www.pro-cold.eu/","Kaufpreis","Kurzbeschreibung:\nDieses Rechentool soll dem Einkäufer helfen, bei der Anschaffung neuer Kühl- und Gefriergeräte (vorwiegend im gewerblichen Bereich), Energie und Kosten zu sparen.\n\nEs folgt nun eine kurze Schritt-für-Schritt-Anleitung:\nUm einen Kostenvergleich zwischen den im Unternehmen bestehenden Kühlgeräten und den neu anzuschaffenden, energieeffizienten Geräten ermöglichen zu können, benötigt das Tool einige Inputdaten (grau hinterlegten Felder!)\n\n1) Als erstes muss das jeweilige Land über das Dropdown-Menü ausgewählt werden (z.B. Austria) - damit wir automatisch die Sprache eingestellt\n2) Auswählen des im Bestand vorhandenen Kühl- bzw. Gefriergeräts über das Dropdownmenü (z.B. Lager-Kühlgeräte Unterbau)\n3) Länderabhängigen Stromtarif und CO2 Emissionsfaktor angeben (z.B. 0,44 kgCO2/kWh)\n4) Angabe des Nettovolumens des jeweiligen Kühl- bzw. Gefriergeräts (z.B. 315 L) - auch mit dem Schieber möglich\n5) Angabe des Jahresnergieverbauchs in [kWh/a] des Geräts (z.B. 1533 kWh/a) - auch mit dem Schieber möglich\n6) Möglichkeit zur Eingabe mehrerer Produkte der selben Kategorie (z.B. 3x Lager-Kühlgerät Unterbau)\n7) Eingabe der gesamten Nutzungdauer des Geräts (z.B. 8 Jahre)\n8) Möglichkeit zur Angabe der Kaufpreise des bestehenden bzw. des neu anzuschaffenden Geräts (z.B. € 1.000,--  € bzw. 1200 €)\n\nMit diesen Angaben kann das Tool die Total Cost of Ownership berechnen und gibt das Ergebnis in der grün hinterlegten Zelle aus (dies wird auch in einem Diagramm veranschaulicht).\nAuch die gesamte eingesparte Energie und die CO2 Emissionen bezogen auf die Nutzungdauer berechnet dieses Tool (grün hintelegte Zellen). Mithilfe des Tipplinks können Sie sofort für die ausgewählte Produktkategorie die effizientesten Geräte finden.","http://www.topten.ch/deutsch/gewerbegeraete/lager-kuehlgeraete/lager-kuehlschraenke-unterbau.html","http://www.topten.ch/deutsch/gewerbegeraete/lager-kuehlgeraete/lager-kuehlschraenke-1-tuerig.html","http://www.topten.ch/deutsch/gewerbegeraete/lager-kuehlgeraete/lager-kuehlschraenke-2-tuerig.html","http://www.topten.ch/deutsch/gewerbegeraete/lager-gefriergeraete/lager-gefrierschraenke-unterbau.html","http://www.topten.ch/deutsch/gewerbegeraete/lager-gefriergeraete/lager-gefrierschraenke-1-tuerig.html","http://www.topten.ch/deutsch/gewerbegeraete/lager-gefriergeraete/lager-gefrierschraenke-2-tuerig.html","Kaufpreis","Ihr Produkt","Top Produkt","0.44","Graue CO2 Emissionen"]
[null,null,null,null,null,null,null,null,null,null,null,{"$f":"VLOOKUP(Z3,AM54:CV64,53,FALSE)","v":"Purchase price"},{"$f":"$Z$25","v":2000},{"$f":"$Z$22","v":2500},null,null,null,null,null,null,null,null,null,null,null,null,null,null,null,null,null,null,null,null,null,null,null,null,"CH_FR","\"Select product type\"","\"Your product(s)\"","\"Electricity tariff\"","\"Top product(s)\"","\"Total Savings\"","\"Energy consumption\"","\"Energy costs\"","\"Net volume\"","\"Service life\"","\"CO2 emissions\"","\"Top product(s)\"","\"Calculation Settings\"","\"Energy Efficiency Index\"","\"Energy Class\"","\"Top product (price)\"","\"Your product (price)\"","\"Number of products in same category\"","\"CO2 emission factor\"","\"Professional Storage Cabinets\"","\"Input product data\"","\"Comparison to Top product(s) over life time\"","\"Storage Counter Refrigerators\"","\"Storage Refrigerators 1 - door\"","\"Storage Refrigerators 2 - doors\"","\"Storage Counter Freezers\"","\"Storage Freezers 1 - door\"","\"Storage Freezers 2 - doors\"","CHF/kWh","years","CHF","\"Tip-Link\"","Info:","\"add country specific value here\"","\"Annual Energy Consumption (AEC = TEC * 365)\"","\"„Find efficient Storage Counter Refrigerators online“\"","\"„Find efficient Storage Refrigerators 1 - door online“\"","\"„Find efficient Storage Refrigerators 2 - doors online“\"","\"„Find efficient Storage Counter Freezers online“\"","\"„Find efficient Storage Freezers 1 - door online“\"","\"„Find efficient Storage Freezers 2 - doors online“\"","\"total energy costs - Top product(s) vs. Actual product(s)\"","in CHF","http://www.pro-cold.eu/","\"purchase price\"","\n\"Short description:\nThis tool is designed to help the buyers to save on the purchase of new refrigerators and freezers (mainly in the commercial sector), energy and costs.\n\nWhat follows is a short step by step guide:\nTo enable a cost comparison between the existing refrigerators and the new energy efficient devices  - the tool nees some input data (cells with gray background!)\n\n1) The first thing is to select the right country with the help of a drop down menu (eg Austria) - so that the language can be set automatically\n2) Select the existing refrigerator or freezer with the help of the dorp down menu (eg Storage Counter Refrigerators) \n3) Fill in the Country-specific tariff and CO2 emission factor (eg 0.44 kgCO2/kWh)\n4) Fill in the nominal volume of the respective refrigerator or freezer (eg 315 L) - also possible with the slider\n5) Add the anual energy consumption in [kWh/a] (eg 1533 kWh/a) - also possible with the slider\n6) Possibility to enter several products of the same category (eg 3x Storage Counter Refrigerator)\n7) Entering the service life of your device (eg 8 years)\n8) Option to indicate the purchase prices of the existing and the new efficient device (eg € 1,000 - € or 1200 €)\n\nWith this information, the tool can calculate the total cost of ownership and gives out the result in the green highlighted cell (this is also illustrated in the graph). The total energy saved and the CO2 emissions related to the service life are also calculated by the tool (cells with green background). Using the tip-links, you can instantly find the most efficient devices for the selected product category\"\n\n","http://www.topten.ch/francais/froids-professionnels/refrigerateurs-2/refrigerateur-sous-plan.html","http://www.topten.ch/francais/froids-professionnels/refrigerateurs-2/refrigerateur-1-porte.html","http://www.topten.ch/francais/froids-professionnels/refrigerateurs-2/refrigerateur-2-portes.html","http://www.topten.ch/francais/froids-professionnels/congelateurs/congelateurs-sous-plan.html","http://www.topten.ch/francais/froids-professionnels/congelateurs/congelateurs-1-porte.html","http://www.topten.ch/francais/froids-professionnels/congelateurs/congelateurs-2-portes.html","\"purchase price - product(s)\"","\"Your product\"","\"Top product\"","\"add country specific value here\"","\"Grey CO2 emissions\""]
[null,null,null,null,null,null,null,null,null,null,null,{"$f":"VLOOKUP(Z3,AM54:BD64,8,FALSE)","v":"Energy costs"},{"$f":"$AB$25","v":2587.2000000000003},{"$f":"$AB$26","v":1127.407968},null,null,null,null,null,null,null,null,null,null,null,null,null,null,null,null,null,null,null,null,null,null,null,null,"CH_IT","\"Select product type\"","\"Your product(s)\"","\"Electricity tariff\"","\"Top product(s)\"","\"Total Savings\"","\"Energy consumption\"","\"Energy costs\"","\"Net volume\"","\"Service life\"","\"CO2 emissions\"","\"Top product(s)\"","\"Calculation Settings\"","\"Energy Efficiency Index\"","\"Energy Class\"","\"Top product (price)\"","\"Your product (price)\"","\"Number of products in same category\"","\"CO2 emission factor\"","\"Professional Storage Cabinets\"","\"Input product data\"","\"Comparison to Top product(s) over life time\"","\"Storage Counter Refrigerators\"","\"Storage Refrigerators 1 - door\"","\"Storage Refrigerators 2 - doors\"","\"Storage Counter Freezers\"","\"Storage Freezers 1 - door\"","\"Storage Freezers 2 - doors\"","CHF/kWh","years","CHF","\"Tip-Link\"","Info:","\"add country specific value here\"","\"Annual Energy Consumption (AEC = TEC * 365)\"","\"„Find efficient Storage Counter Refrigerators online“\"","\"„Find efficient Storage Refrigerators 1 - door online“\"","\"„Find efficient Storage Refrigerators 2 - doors online“\"","\"„Find efficient Storage Counter Freezers online“\"","\"„Find efficient Storage Freezers 1 - door online“\"","\"„Find efficient Storage Freezers 2 - doors online“\"","\"total energy costs - Top product(s) vs. Actual product(s)\"","in CHF","http://www.pro-cold.eu/","\"purchase price\"","\n\"Short description:\nThis tool is designed to help the buyers to save on the purchase of new refrigerators and freezers (mainly in the commercial sector), energy and costs.\n\nWhat follows is a short step by step guide:\nTo enable a cost comparison between the existing refrigerators and the new energy efficient devices  - the tool nees some input data (cells with gray background!)\n\n1) The first thing is to select the right country with the help of a drop down menu (eg Austria) - so that the language can be set automatically\n2) Select the existing refrigerator or freezer with the help of the dorp down menu (eg Storage Counter Refrigerators) \n3) Fill in the Country-specific tariff and CO2 emission factor (eg 0.44 kgCO2/kWh)\n4) Fill in the nominal volume of the respective refrigerator or freezer (eg 315 L) - also possible with the slider\n5) Add the anual energy consumption in [kWh/a] (eg 1533 kWh/a) - also possible with the slider\n6) Possibility to enter several products of the same category (eg 3x Storage Counter Refrigerator)\n7) Entering the service life of your device (eg 8 years)\n8) Option to indicate the purchase prices of the existing and the new efficient device (eg € 1,000 - € or 1200 €)\n\nWith this information, the tool can calculate the total cost of ownership and gives out the result in the green highlighted cell (this is also illustrated in the graph). The total energy saved and the CO2 emissions related to the service life are also calculated by the tool (cells with green background). Using the tip-links, you can instantly find the most efficient devices for the selected product category\"\n\n","http://www.topten.ch/italiano/gastronomia/frigoriferi-per-la-ristorazione/frigoriferi-sottopiano.html","http://www.topten.ch/italiano/gastronomia/frigoriferi-per-la-ristorazione/frigoriferi-a-1-porta.html","http://www.topten.ch/italiano/gastronomia/frigoriferi-per-la-ristorazione/frigoriferi-a-2-porte.html","http://www.topten.ch/italiano/gastronomia/congelatori-per-la-ristorazione/congelatori-sottopiano.html","http://www.topten.ch/italiano/gastronomia/congelatori-per-la-ristorazione/congelatori-a-1-porta.html","http://www.topten.ch/italiano/gastronomia/congelatori-per-la-ristorazione/congelatori-a-2-porte.html","\"purchase price - product(s)\"","\"Your product\"","\"Top product\"","\"add country specific value here\"","\"Grey CO2 emissions\""]
[null,null,null,null,null,null,null,null,null,null,null,null,null,null,null,null,null,null,null,null,null,null,null,null,null,null,null,null,null,null,null,null,null,null,null,null,null,null,"Czech Rep.","\"Select product type\"","\"Your product(s)\"","\"Electricity tariff\"","\"Top product(s)\"","\"Total Savings\"","\"Energy consumption\"","\"Energy costs\"","\"Net volume\"","\"Service life\"","\"CO2 emissions\"","\"Top product(s)\"","\"Calculation Settings\"","\"Energy Efficiency Index\"","\"Energy Class\"","\"Top product (price)\"","\"Your product (price)\"","\"Number of products in same category\"","\"CO2 emission factor\"","\"Professional Storage Cabinets\"","\"Input product data\"","\"Comparison to Top product(s) over life time\"","\"Storage Counter Refrigerators\"","\"Storage Refrigerators 1 - door\"","\"Storage Refrigerators 2 - doors\"","\"Storage Counter Freezers\"","\"Storage Freezers 1 - door\"","\"Storage Freezers 2 - doors\"","CZK/kWh","years","CZK","\"Tip-Link\"","Info:","\"add country specific value here\"","\"Annual Energy Consumption (AEC = TEC * 365)\"","\"„Find efficient Storage Counter Refrigerators online“\"","\"„Find efficient Storage Refrigerators 1 - door online“\"","\"„Find efficient Storage Refrigerators 2 - doors online“\"","\"„Find efficient Storage Counter Freezers online“\"","\"„Find efficient Storage Freezers 1 - door online“\"","\"„Find efficient Storage Freezers 2 - doors online“\"","\"total energy costs - Top product(s) vs. Actual product(s)\"","in CZK","http://www.pro-cold.eu/","\"purchase price\"","\n\"Short description:\nThis tool is designed to help the buyers to save on the purchase of new refrigerators and freezers (mainly in the commercial sector), energy and costs.\n\nWhat follows is a short step by step guide:\nTo enable a cost comparison between the existing refrigerators and the new energy efficient devices  - the tool nees some input data (cells with gray background!)\n\n1) The first thing is to select the right country with the help of a drop down menu (eg Austria) - so that the language can be set automatically\n2) Select the existing refrigerator or freezer with the help of the dorp down menu (eg Storage Counter Refrigerators) \n3) Fill in the Country-specific tariff and CO2 emission factor (eg 0.44 kgCO2/kWh)\n4) Fill in the nominal volume of the respective refrigerator or freezer (eg 315 L) - also possible with the slider\n5) Add the anual energy consumption in [kWh/a] (eg 1533 kWh/a) - also possible with the slider\n6) Possibility to enter several products of the same category (eg 3x Storage Counter Refrigerator)\n7) Entering the service life of your device (eg 8 years)\n8) Option to indicate the purchase prices of the existing and the new efficient device (eg € 1,000 - € or 1200 €)\n\nWith this information, the tool can calculate the total cost of ownership and gives out the result in the green highlighted cell (this is also illustrated in the graph). The total energy saved and the CO2 emissions related to the service life are also calculated by the tool (cells with green background). Using the tip-links, you can instantly find the most efficient devices for the selected product category\"\n\n",null,null,null,null,null,null,"\"purchase price - product(s)\"","\"Your product\"","\"Top product\"","\"add country specific value here\"","\"Grey CO2 emissions\""]
[null,null,null,null,null,null,null,null,null,null,null,null,null,null,null,null,null,null,null,null,null,null,null,null,null,null,null,null,null,null,null,null,null,null,null,null,null,null,"France","\"Select product type\"","\"Your product(s)\"","\"Electricity tariff\"","\"Top product(s)\"","\"Total Savings\"","\"Energy consumption\"","\"Energy costs\"","\"Net volume\"","\"Service life\"","\"CO2 emissions\"","\"Top product(s)\"","\"Calculation Settings\"","\"Energy Efficiency Index\"","\"Energy Class\"","\"Top product (price)\"","\"Your product (price)\"","\"Number of products in same category\"","\"CO2 emission factor\"","\"Professional Storage Cabinets\"","\"Input product data\"","\"Comparison to Top product(s) over life time\"","\"Storage Counter Refrigerators\"","\"Storage Refrigerators 1 - door\"","\"Storage Refrigerators 2 - doors\"","\"Storage Counter Freezers\"","\"Storage Freezers 1 - door\"","\"Storage Freezers 2 - doors\"","€/kWh","years","€","\"Tip-Link\"","Info:","\"add country specific value here\"","\"Annual Energy Consumption (AEC = TEC * 365)\"","\"„Find efficient Storage Counter Refrigerators online“\"","\"„Find efficient Storage Refrigerators 1 - door online“\"","\"„Find efficient Storage Refrigerators 2 - doors online“\"","\"„Find efficient Storage Counter Freezers online“\"","\"„Find efficient Storage Freezers 1 - door online“\"","\"„Find efficient Storage Freezers 2 - doors online“\"","\"total energy costs - Top product(s) vs. Actual product(s)\"","in €","http://www.pro-cold.eu/","\"purchase price\"","\nShort description:\nThis tool is designed to help the buyers to save on the purchase of new refrigerators and freezers (mainly in the commercial sector), energy and costs.\n\nWhat follows is a short step by step guide:\nTo enable a cost comparison between the existing refrigerators and the new energy efficient devices  - the tool nees some input data (cells with gray background!)\n\n1) The first thing is to select the right country with the help of a drop down menu (eg Austria) - so that the language can be set automatically\n2) Select the existing refrigerator or freezer with the help of the dorp down menu (eg Storage Counter Refrigerators) \n3) Fill in the Country-specific tariff and CO2 emission factor (eg 0.44 kgCO2/kWh)\n4) Fill in the nominal volume of the respective refrigerator or freezer (eg 315 L) - also possible with the slider\n5) Add the anual energy consumption in [kWh/a] (eg 1533 kWh/a) - also possible with the slider\n6) Possibility to enter several products of the same category (eg 3x Storage Counter Refrigerator)\n7) Entering the service life of your device (eg 8 years)\n8) Option to indicate the purchase prices of the existing and the new efficient device (eg € 1,000 - € or 1200 €)\n\nWith this information, the tool can calculate the total cost of ownership and gives out the result in the green highlighted cell (this is also illustrated in the graph). The total energy saved and the CO2 emissions related to the service life are also calculated by the tool (cells with green background). Using the tip-links, you can instantly find the most efficient devices for the selected product category\n\n",null,null,null,null,null,null,"\"purchase price - product(s)\"","\"Your product\"","\"Top product\"","\"add country specific value here\"","\"Grey CO2 emissions\""]
[null,null,null,null,null,null,null,null,null,null,null,null,null,null,null,null,null,null,null,null,null,null,null,null,null,null,null,null,null,null,null,null,null,null,null,null,null,null,"Germany","Auswahl des Produkttyps","Ihr(e) Produkt(e)","Stromtarif","Top Produkt(e) ","Gesamte Ersparnis","Energieverbrauch","Energiekosten","Netto Volumen","Nutzungsdauer","CO2 Emissionen","Top Produkt(e) ","Berechnungseinstellungen","Energie Effizienz Index","Energie Effizienz Klasse","Top Produkt (Preis)","Ihr Produkt (Preis)","Anzahl an Produkten derselben Kategorie","CO2 Emissonsfaktor","Professionelle Lagerkühlgeräte","Input Produktdaten","Vergleich zu dem/den Top Produkt(en) bezogen auf die Lebensdauer","Lager-Kühlgeräte Unterbau","Lager-Kühlschränke 1 - türig","Lager-Kühlschränke 2 - türig","Lager-Tiefkühlgeräte Unterbau","Lager-Tiefkühlschränke 1-türig","Lager-Tiefkühlschränke 2-türig","€/kWh","Jahre","€","Tipplink","Info:","\"füge länderspezifischen Wert hier ein\"","Jahresenergieverbrauch (AEC = TEC * 365)","\"Finde effiziente Lager-Kühlgeräte (Unterbau) online\"","\"Finde effiziente Lager-Kühlschränke 1 - türig online\"","\"Finde effiziente Lager-Kühlschränke 2 - türig online\"","\"Finde effiziente Lager-Tiefkühlgeräte (Unterbau) online\"","\"Finde effiziente Lager-Tiefkühlschränke 1-türig online\"","\"Finde effiziente Lager-Tiefkühlschränke 2 - türig online\"","Gesamt Energiekosten - Topprodukt(e) vs. Bestehene(s) Produkt(e)","in €","http://www.pro-cold.eu/","Kaufpreis","Kurzbeschreibung:\nDieses Rechentool soll dem Einkäufer helfen, bei der Anschaffung neuer Kühl- und Gefriergeräte (vorwiegend im gewerblichen Bereich), Energie und Kosten zu sparen.\n\nEs folgt nun eine kurze Schritt-für-Schritt-Anleitung:\nUm einen Kostenvergleich zwischen den im Unternehmen bestehenden Kühlgeräten und den neu anzuschaffenden, energieeffizienten Geräten ermöglichen zu können, benötigt das Tool einige Inputdaten (grau hinterlegten Felder!)\n\n1) Als erstes muss das jeweilige Land über das Dropdown-Menü ausgewählt werden (z.B. Austria) - damit wir automatisch die Sprache eingestellt\n2) Auswählen des im Bestand vorhandenen Kühl- bzw. Gefriergeräts über das Dropdownmenü (z.B. Lager-Kühlgeräte Unterbau)\n3) Länderabhängigen Stromtarif und CO2 Emissionsfaktor angeben (z.B. 0,44 kgCO2/kWh)\n4) Angabe des Nettovolumens des jeweiligen Kühl- bzw. Gefriergeräts (z.B. 315 L) - auch mit dem Schieber möglich\n5) Angabe des Jahresnergieverbauchs in [kWh/a] des Geräts (z.B. 1533 kWh/a) - auch mit dem Schieber möglich\n6) Möglichkeit zur Eingabe mehrerer Produkte der selben Kategorie (z.B. 3x Lager-Kühlgerät Unterbau)\n7) Eingabe der gesamten Nutzungdauer des Geräts (z.B. 8 Jahre)\n8) Möglichkeit zur Angabe der Kaufpreise des bestehenden bzw. des neu anzuschaffenden Geräts (z.B. € 1.000,--  € bzw. 1200 €)\n\nMit diesen Angaben kann das Tool die Total Cost of Ownership berechnen und gibt das Ergebnis in der grün hinterlegten Zelle aus (dies wird auch in einem Diagramm veranschaulicht).\nAuch die gesamte eingesparte Energie und die CO2 Emissionen bezogen auf die Nutzungdauer berechnet dieses Tool (grün hintelegte Zellen). Mithilfe des Tipplinks können Sie sofort für die ausgewählte Produktkategorie die effizientesten Geräte finden.",null,null,null,null,null,null,"Kaufpreis - Produkt(e)","Ihr Produkt","Top Produkt","0,666 (gemäß Ecoinvent 3.01)\n ","Graue CO2 Emissionen"]
[null,null,null,null,null,null,null,null,null,null,null,null,null,null,null,null,null,null,null,null,null,null,null,null,null,null,null,null,null,null,null,null,null,null,null,null,null,null,"Italy","\"Select product type\"","\"Your product(s)\"","\"Electricity tariff\"","\"Top product(s)\"","\"Total Savings\"","\"Energy consumption\"","\"Energy costs\"","\"Net volume\"","\"Service life\"","\"CO2 emissions\"","\"Top product(s)\"","\"Calculation Settings\"","\"Energy Efficiency Index\"","\"Energy Class\"","\"Top product (price)\"","\"Your product (price)\"","\"Number of products in same category\"","\"CO2 emission factor\"","\"Professional Storage Cabinets\"","\"Input product data\"","\"Comparison to Top product(s) over life time\"","\"Storage Counter Refrigerators\"","\"Storage Refrigerators 1 - door\"","\"Storage Refrigerators 2 - doors\"","\"Storage Counter Freezers\"","\"Storage Freezers 1 - door\"","\"Storage Freezers 2 - doors\"","€/kWh","years","€","\"Tip-Link\"","Info:","\"add country specific value here\"","\"Annual Energy Consumption (AEC = TEC * 365)\"","\"„Find efficient Storage Counter Refrigerators online“\"","\"„Find efficient Storage Refrigerators 1 - door online“\"","\"„Find efficient Storage Refrigerators 2 - doors online“\"","\"„Find efficient Storage Counter Freezers online“\"","\"„Find efficient Storage Freezers 1 - door online“\"","\"„Find efficient Storage Freezers 2 - doors online“\"","\"total energy costs - Top product(s) vs. Actual product(s)\"","in €","http://www.pro-cold.eu/","\"purchase price\"","\n\"Short description:\nThis tool is designed to help the buyers to save on the purchase of new refrigerators and freezers (mainly in the commercial sector), energy and costs.\n\nWhat follows is a short step by step guide:\nTo enable a cost comparison between the existing refrigerators and the new energy efficient devices  - the tool nees some input data (cells with gray background!)\n\n1) The first thing is to select the right country with the help of a drop down menu (eg Austria) - so that the language can be set automatically\n2) Select the existing refrigerator or freezer with the help of the dorp down menu (eg Storage Counter Refrigerators) \n3) Fill in the Country-specific tariff and CO2 emission factor (eg 0.44 kgCO2/kWh)\n4) Fill in the nominal volume of the respective refrigerator or freezer (eg 315 L) - also possible with the slider\n5) Add the anual energy consumption in [kWh/a] (eg 1533 kWh/a) - also possible with the slider\n6) Possibility to enter several products of the same category (eg 3x Storage Counter Refrigerator)\n7) Entering the service life of your device (eg 8 years)\n8) Option to indicate the purchase prices of the existing and the new efficient device (eg € 1,000 - € or 1200 €)\n\nWith this information, the tool can calculate the total cost of ownership and gives out the result in the green highlighted cell (this is also illustrated in the graph). The total energy saved and the CO2 emissions related to the service life are also calculated by the tool (cells with green background). Using the tip-links, you can instantly find the most efficient devices for the selected product category\"\n\n",null,null,null,null,null,null,"\"purchase price - product(s)\"","\"Your product\"","\"Top product\"","\"add country specific value here\"","\"Grey CO2 emissions\""]
[null,null,null,null,null,null,null,null,null,null,null,null,null,null,null,null,null,null,null,null,null,null,null,null,null,null,null,null,null,null,null,null,null,null,null,null,null,null,"Portugal","\"Select product type\"","\"Your product(s)\"","\"Electricity tariff\"","\"Top product(s)\"","\"Total Savings\"","\"Energy consumption\"","\"Energy costs\"","\"Net volume\"","\"Service life\"","\"CO2 emissions\"","\"Top product(s)\"","\"Calculation Settings\"","\"Energy Efficiency Index\"","\"Energy Class\"","\"Top product (price)\"","\"Your product (price)\"","\"Number of products in same category\"","\"CO2 emission factor\"","\"Professional Storage Cabinets\"","\"Input product data\"","\"Comparison to Top product(s) over life time\"","\"Storage Counter Refrigerators\"","\"Storage Refrigerators 1 - door\"","\"Storage Refrigerators 2 - doors\"","\"Storage Counter Freezers\"","\"Storage Freezers 1 - door\"","\"Storage Freezers 2 - doors\"","€/kWh","years","€","\"Tip-Link\"","Info:","\"add country specific value here\"","\"Annual Energy Consumption (AEC = TEC * 365)\"","\"„Find efficient Storage Counter Refrigerators online“\"","\"„Find efficient Storage Refrigerators 1 - door online“\"","\"„Find efficient Storage Refrigerators 2 - doors online“\"","\"„Find efficient Storage Counter Freezers online“\"","\"„Find efficient Storage Freezers 1 - door online“\"","\"„Find efficient Storage Freezers 2 - doors online“\"","\"total energy costs - Top product(s) vs. Actual product(s)\"","in €","http://www.pro-cold.eu/","\"purchase price\"","\n\"Short description:\nThis tool is designed to help the buyers to save on the purchase of new refrigerators and freezers (mainly in the commercial sector), energy and costs.\n\nWhat follows is a short step by step guide:\nTo enable a cost comparison between the existing refrigerators and the new energy efficient devices  - the tool nees some input data (cells with gray background!)\n\n1) The first thing is to select the right country with the help of a drop down menu (eg Austria) - so that the language can be set automatically\n2) Select the existing refrigerator or freezer with the help of the dorp down menu (eg Storage Counter Refrigerators) \n3) Fill in the Country-specific tariff and CO2 emission factor (eg 0.44 kgCO2/kWh)\n4) Fill in the nominal volume of the respective refrigerator or freezer (eg 315 L) - also possible with the slider\n5) Add the anual energy consumption in [kWh/a] (eg 1533 kWh/a) - also possible with the slider\n6) Possibility to enter several products of the same category (eg 3x Storage Counter Refrigerator)\n7) Entering the service life of your device (eg 8 years)\n8) Option to indicate the purchase prices of the existing and the new efficient device (eg € 1,000 - € or 1200 €)\n\nWith this information, the tool can calculate the total cost of ownership and gives out the result in the green highlighted cell (this is also illustrated in the graph). The total energy saved and the CO2 emissions related to the service life are also calculated by the tool (cells with green background). Using the tip-links, you can instantly find the most efficient devices for the selected product category\"\n\n",null,null,null,null,null,null,"\"purchase price - product(s)\"","\"Your product\"","\"Top product\"","\"add country specific value here\"","\"Grey CO2 emissions\""]
[null,null,null,null,null,null,null,null,null,null,null,null,null,null,null,null,null,null,null,null,null,null,null,null,null,null,null,null,null,null,null,null,null,null,null,null,null,null,"Sweden","\"Select product type\"","\"Your product(s)\"","\"Electricity tariff\"","\"Top product(s)\"","\"Total Savings\"","\"Energy consumption\"","\"Energy costs\"","\"Net volume\"","\"Service life\"","\"CO2 emissions\"","\"Top product(s)\"","\"Calculation Settings\"","\"Energy Efficiency Index\"","\"Energy Class\"","\"Top product (price)\"","\"Your product (price)\"","\"Number of products in same category\"","\"CO2 emission factor\"","\"Professional Storage Cabinets\"","\"Input product data\"","\"Comparison to Top product(s) over life time\"","\"Storage Counter Refrigerators\"","\"Storage Refrigerators 1 - door\"","\"Storage Refrigerators 2 - doors\"","\"Storage Counter Freezers\"","\"Storage Freezers 1 - door\"","\"Storage Freezers 2 - doors\"","SEK/kWh","years","SEK","\"Tip-Link\"","Info:","\"add country specific value here\"","\"Annual Energy Consumption (AEC = TEC * 365)\"","\"„Find efficient Storage Counter Refrigerators online“\"","\"„Find efficient Storage Refrigerators 1 - door online“\"","\"„Find efficient Storage Refrigerators 2 - doors online“\"","\"„Find efficient Storage Counter Freezers online“\"","\"„Find efficient Storage Freezers 1 - door online“\"","\"„Find efficient Storage Freezers 2 - doors online“\"","\"total energy costs - Top product(s) vs. Actual product(s)\"","in SEK","http://www.pro-cold.eu/","\"purchase price\"","\n\"Short description:\nThis tool is designed to help the buyers to save on the purchase of new refrigerators and freezers (mainly in the commercial sector), energy and costs.\n\nWhat follows is a short step by step guide:\nTo enable a cost comparison between the existing refrigerators and the new energy efficient devices  - the tool nees some input data (cells with gray background!)\n\n1) The first thing is to select the right country with the help of a drop down menu (eg Austria) - so that the language can be set automatically\n2) Select the existing refrigerator or freezer with the help of the dorp down menu (eg Storage Counter Refrigerators) \n3) Fill in the Country-specific tariff and CO2 emission factor (eg 0.44 kgCO2/kWh)\n4) Fill in the nominal volume of the respective refrigerator or freezer (eg 315 L) - also possible with the slider\n5) Add the anual energy consumption in [kWh/a] (eg 1533 kWh/a) - also possible with the slider\n6) Possibility to enter several products of the same category (eg 3x Storage Counter Refrigerator)\n7) Entering the service life of your device (eg 8 years)\n8) Option to indicate the purchase prices of the existing and the new efficient device (eg € 1,000 - € or 1200 €)\n\nWith this information, the tool can calculate the total cost of ownership and gives out the result in the green highlighted cell (this is also illustrated in the graph). The total energy saved and the CO2 emissions related to the service life are also calculated by the tool (cells with green background). Using the tip-links, you can instantly find the most efficient devices for the selected product category\"\n\n",null,null,null,null,null,null,"\"purchase price - product(s)\"","\"Your product\"","\"Top product\"","\"add country specific value here\"","\"Grey CO2 emissions\""]
[]
[]
[null,null,null,null,null,null,null,null,null,null,null,null,null,null,null,null,null,null,null,null,null,null,null,null,null,null,null,null,null,null,null,null,null,null,null,null,null,null,"Beschreibung:",null,null,null,"Description:"]
[null,null,null,null,null,null,null,null,null,null,null,"topprodukte","Modell",null,"EEI","Mittelwert",null,null,null,null,null,null,null,null,null,null,null,null,null,null,null,null,null,null,null,null,null,null,"\nDies ist die SVERWEIS-Datenbank - hier holt sich das Tool die benötigten Beschriftungen bzw. Einheiten - welche länderabhängig sind. Für die englisch u. deutssprachigen Länder sind die Bezeichungen schon festgelegt.\nFür die anderen noch ausstehenen Länder (z.B. Iatlien, Frankreich, usw.) wurde als Platzhalter immer der englische Begriff unter Anführungszeichen in der Datenbank hinterlegt - dieser kann dann durch den jweiligen Partner selber in der SVERWEIS Datenbank auf die richtige Sprache umgeändert werden...",null,null,null,"\nThis is a SVERWEIS-database - here the tool faetches the necessary labels or units - which are country-dependent. For the English u. German-speaking countries, the labels have been defined. For the other remaining countries (eg Italy, France, etc.) always the English term was deposited under quotation marks in the database as a free variable parameter - these can be changed to the SVERWEIS-database to the correct language by the partner himself..."]
[null,null,null,null,null,null,null,null,null,null,null,null,"Storage Counter Refrigerators"]
[null,null,null,null,null,null,null,null,null,null,null,null,"COMPACT K 210 RG ",null,15.1]
[null,null,null,null,null,null,null,null,null,null,null,null,"PTGM4",null,20.9]
[null,null,null,null,null,null,null,null,null,null,null,null,"PTGM3",null,22.6]
[null,null,null,null,null,null,null,null,null,null,null,null,"PTGM2",null,25.7,{"$f":"SUM(O70:O73)/4","v":21.074999999999999}]
[null,null,null,null,null,null,null,null,null,null,null,null,"Storage Refrigerators 1-door"]
[null,null,null,null,null,null,null,null,null,null,null,null,"EURO K 500 LSG",null,58.6]
[null,null,null,null,null,null,null,null,null,null,null,null,"COMPACT K 610 LG",null,55.7]
[null,null,null,null,null,null,null,null,null,null,null,null,"GKv 6410",null,54.9]
[null,null,null,null,null,null,null,null,null,null,null,null,"IPGM7G",null,52]
[null,null,null,null,null,null,null,null,null,null,null,null,"GKv 5730",null,51.7]
[null,null,null,null,null,null,null,null,null,null,null,null,"Plus K 660 LSG",null,51.6]
[null,null,null,null,null,null,null,null,null,null,null,null,"GKPv 6570",null,49.9]
[null,null,null,null,null,null,null,null,null,null,null,null,"TWIN K 660 LSG",null,49.3]
[null,null,null,null,null,null,null,null,null,null,null,null,"TWIN K 600 RSG",null,48.4]
[null,null,null,null,null,null,null,null,null,null,null,null,"PGM7",null,48.2]
[null,null,null,null,null,null,null,null,null,null,null,null,"COMPACT K 410 LG",null,47.3]
[null,null,null,null,null,null,null,null,null,null,null,null,"GKv 5710",null,47]
[null,null,null,null,null,null,null,null,null,null,null,null,"MIDI K 425 LSG",null,45.7]
[null,null,null,null,null,null,null,null,null,null,null,null,"IPGM7G",null,44.3]
[null,null,null,null,null,null,null,null,null,null,null,null,"Ecostore Touch 727298",null,40]
[null,null,null,null,null,null,null,null,null,null,null,null,"Ecostore Premium 727310",null,40]
[null,null,null,null,null,null,null,null,null,null,null,null,"GKPv 6590",null,39.799999999999997]
[null,null,null,null,null,null,null,null,null,null,null,null,"EcoPro EP700H",null,38.9]
[null,null,null,null,null,null,null,null,null,null,null,null,"MIDI K 625 LSG",null,38.299999999999997]
[null,null,null,null,null,null,null,null,null,null,null,null,"PLUS K 600 RSG",null,38.1]
[null,null,null,null,null,null,null,null,null,null,null,null,"Inventus C7",null,28.9]
[null,null,null,null,null,null,null,null,null,null,null,null,"Eco Plus K70G",null,28.8]
[null,null,null,null,null,null,null,null,null,null,null,null,"Inventus C6",null,28.5]
[null,null,null,null,null,null,null,null,null,null,null,null,"Inventus C8",null,24.2]
[null,null,null,null,null,null,null,null,null,null,null,null,"Superior Plus K72G",null,26.62]
[null,null,null,null,null,null,null,null,null,null,null,null,"Inventus CX7",null,20.11,{"$f":"SUM(O75:O100)/26","v":42.185769230769218}]
[null,null,null,null,null,null,null,null,null,null,null,null,"Storage Refrigerators 2 - doors"]
[null,null,null,null,null,null,null,null,null,null,null,null,"PG2M14",null,63.1]
[null,null,null,null,null,null,null,null,null,null,null,null,"GKPv 1470",null,62.3]
[null,null,null,null,null,null,null,null,null,null,null,null,"Ecostore Premium 727322",null,57.7]
[null,null,null,null,null,null,null,null,null,null,null,null,"GKPv 1490",null,56.6]
[null,null,null,null,null,null,null,null,null,null,null,null,"PGM14G",null,46.4]
[null,null,null,null,null,null,null,null,null,null,null,null,"Ecostore Premium 727320",null,45.8]
[null,null,null,null,null,null,null,null,null,null,null,null,"Ecostore Touch 727304",null,45.8]
[null,null,null,null,null,null,null,null,null,null,null,null,"PGM14",null,37.1,{"$f":"SUM(O102:O109)/8","v":51.850000000000009}]
[null,null,null,null,null,null,null,null,null,null,null,null,"Storage Counter Freezers"]
[null,null,null,null,null,null,null,null,null,null,null,null,"COMPACT F 210 LG",null,28.7]
[null,null,null,null,null,null,null,null,null,null,null,null,"GGU 1500",null,16,{"$f":"SUM(O111:O112)/2","v":22.35}]
[null,null,null,null,null,null,null,null,null,null,null,null,"Storage Freezers 1 - door"]
[null,null,null,null,null,null,null,null,null,null,null,null,"COMPACT F 610 RG",null,71.400000000000006]
[null,null,null,null,null,null,null,null,null,null,null,null,"EcoPro EP700L",null,69.599999999999994]
[null,null,null,null,null,null,null,null,null,null,null,null,"F 605 RG",null,68.7]
[null,null,null,null,null,null,null,null,null,null,null,null,"EURO F 500 LSG",null,66.2]
[null,null,null,null,null,null,null,null,null,null,null,null,"GGPv 6570",null,64.900000000000006]
[null,null,null,null,null,null,null,null,null,null,null,null,"MIDI F 425 RSG",null,64.7]
[null,null,null,null,null,null,null,null,null,null,null,null,"PLUS F 660 RSG",null,63.4]
[null,null,null,null,null,null,null,null,null,null,null,null,"PLUS F 600 RSG",null,62]
[null,null,null,null,null,null,null,null,null,null,null,null,"GGPv 6590",null,60]
[null,null,null,null,null,null,null,null,null,null,null,null,"Ecostore Premium 727314",null,59.6]
[null,null,null,null,null,null,null,null,null,null,null,null,"TWIN F 600 RSG",null,57.5]
[null,null,null,null,null,null,null,null,null,null,null,null,"MIDI F 625 LSG",null,57.1]
[null,null,null,null,null,null,null,null,null,null,null,null,"TWIN F 600 LSG",null,54.7]
[null,null,null,null,null,null,null,null,null,null,null,null,"GGv 5810",null,52]
[null,null,null,null,null,null,null,null,null,null,null,null,"Ecostore Touch 727300",null,46.8]
[null,null,null,null,null,null,null,null,null,null,null,null,"GGv 5010",null,37.9]
[null,null,null,null,null,null,null,null,null,null,null,null,"Inventus F6",null,33.9]
[null,null,null,null,null,null,null,null,null,null,null,null,"Inventus F8",null,29.9]
[null,null,null,null,null,null,null,null,null,null,null,null,"Inventus F7",null,26.8]
[null,null,null,null,null,null,null,null,null,null,null,null,"Inventus FX7",null,19.5,{"$f":"SUM(O114:O133)/20","v":53.33}]
[null,null,null,null,null,null,null,null,null,null,null,null,"Storage Freezers 2 - doors"]
[null,null,null,null,null,null,null,null,null,null,null,null,"PLUS F 1270 RSG",null,71.400000000000006]
[null,null,null,null,null,null,null,null,null,null,null,null,"PLUS F 1400 RSG",null,66.8]
[null,null,null,null,null,null,null,null,null,null,null,null,"GGPv 1470",null,63.9]
[null,null,null,null,null,null,null,null,null,null,null,null,"Ecostore Premium 727323",null,60]
[null,null,null,null,null,null,null,null,null,null,null,null,"GGPv 1490",null,59.4,{"$f":"SUM(O135:O139)/5","v":64.3}]
[]
[null,null,null,null,null,null,null,null,null,null,null,"Tabelle EEI"]
[null,null,null,null,null,null,null,null,null,null,null,1,"A+++"]
[null,null,null,null,null,null,null,null,null,null,null,2,"A+++"]
[null,null,null,null,null,null,null,null,null,null,null,3,"A+++"]
[null,null,null,null,null,null,null,null,null,null,null,4,"A+++"]
[null,null,null,null,null,null,null,null,null,null,null,5,"A+++"]
[null,null,null,null,null,null,null,null,null,null,null,6,"A+++"]
[null,null,null,null,null,null,null,null,null,null,null,7,"A+++"]
[null,null,null,null,null,null,null,null,null,null,null,8,"A+++"]
[null,null,null,null,null,null,null,null,null,null,null,9,"A+++"]
[null,null,null,null,null,null,null,null,null,null,null,10,"A++"]
[null,null,null,null,null,null,null,null,null,null,null,11,"A++"]
[null,null,null,null,null,null,null,null,null,null,null,12,"A++"]
[null,null,null,null,null,null,null,null,null,null,null,13,"A++"]
[null,null,null,null,null,null,null,null,null,null,null,14,"A++"]
[null,null,null,null,null,null,null,null,null,null,null,15,"A+"]
[null,null,null,null,null,null,null,null,null,null,null,16,"A+"]
[null,null,null,null,null,null,null,null,null,null,null,17,"A+"]
[null,null,null,null,null,null,null,null,null,null,null,18,"A+"]
[null,null,null,null,null,null,null,null,null,null,null,19,"A+"]
[null,null,null,null,null,null,null,null,null,null,null,20,"A"]
[null,null,null,null,null,null,null,null,null,null,null,21,"A"]
[null,null,null,null,null,null,null,null,null,null,null,22,"A"]
[null,null,null,null,null,null,null,null,null,null,null,23,"A"]
[null,null,null,null,null,null,null,null,null,null,null,24,"A"]
[null,null,null,null,null,null,null,null,null,null,null,25,"A"]
[null,null,null,null,null,null,null,null,null,null,null,26,"A"]
[null,null,null,null,null,null,null,null,null,null,null,27,"A"]
[null,null,null,null,null,null,null,null,null,null,null,28,"A"]
[null,null,null,null,null,null,null,null,null,null,null,29,"A"]
[null,null,null,null,null,null,null,null,null,null,null,30,"B"]
[null,null,null,null,null,null,null,null,null,null,null,31,"B"]
[null,null,null,null,null,null,null,null,null,null,null,32,"B"]
[null,null,null,null,null,null,null,null,null,null,null,33,"B"]
[null,null,null,null,null,null,null,null,null,null,null,34,"B"]
[null,null,null,null,null,null,null,null,null,null,null,35,"B"]
[null,null,null,null,null,null,null,null,null,null,null,36,"B"]
[null,null,null,null,null,null,null,null,null,null,null,37,"B"]
[null,null,null,null,null,null,null,null,null,null,null,38,"B"]
[null,null,null,null,null,null,null,null,null,null,null,39,"B"]
[null,null,null,null,null,null,null,null,null,null,null,40,"C"]
[null,null,null,null,null,null,null,null,null,null,null,41,"C"]
[null,null,null,null,null,null,null,null,null,null,null,42,"C"]
[null,null,null,null,null,null,null,null,null,null,null,43,"C"]
[null,null,null,null,null,null,null,null,null,null,null,44,"C"]
[null,null,null,null,null,null,null,null,null,null,null,45,"C"]
[null,null,null,null,null,null,null,null,null,null,null,46,"C"]
[null,null,null,null,null,null,null,null,null,null,null,47,"C"]
[null,null,null,null,null,null,null,null,null,null,null,48,"C"]
[null,null,null,null,null,null,null,null,null,null,null,49,"C"]
[null,null,null,null,null,null,null,null,null,null,null,50,"C"]
[null,null,null,null,null,null,null,null,null,null,null,51,"C"]
[null,null,null,null,null,null,null,null,null,null,null,52,"C"]
[null,null,null,null,null,null,null,null,null,null,null,53,"C"]
[null,null,null,null,null,null,null,null,null,null,null,54,"C"]
[null,null,null,null,null,null,null,null,null,null,null,55,"D"]
[null,null,null,null,null,null,null,null,null,null,null,56,"D"]
[null,null,null,null,null,null,null,null,null,null,null,57,"D"]
[null,null,null,null,null,null,null,null,null,null,null,58,"D"]
[null,null,null,null,null,null,null,null,null,null,null,59,"D"]
[null,null,null,null,null,null,null,null,null,null,null,60,"D"]
[null,null,null,null,null,null,null,null,null,null,null,61,"D"]
[null,null,null,null,null,null,null,null,null,null,null,62,"D"]
[null,null,null,null,null,null,null,null,null,null,null,63,"D"]
[null,null,null,null,null,null,null,null,null,null,null,64,"D"]
[null,null,null,null,null,null,null,null,null,null,null,65,"D"]
[null,null,null,null,null,null,null,null,null,null,null,66,"D"]
[null,null,null,null,null,null,null,null,null,null,null,67,"D"]
[null,null,null,null,null,null,null,null,null,null,null,68,"D"]
[null,null,null,null,null,null,null,null,null,null,null,69,"D"]
[null,null,null,null,null,null,null,null,null,null,null,70,"D"]
[null,null,null,null,null,null,null,null,null,null,null,71,"D"]
[null,null,null,null,null,null,null,null,null,null,null,72,"D"]
[null,null,null,null,null,null,null,null,null,null,null,73,"D"]
[null,null,null,null,null,null,null,null,null,null,null,74,"D"]
[null,null,null,null,null,null,null,null,null,null,null,75,"E"]
[null,null,null,null,null,null,null,null,null,null,null,76,"E"]
[null,null,null,null,null,null,null,null,null,null,null,77,"E"]
[null,null,null,null,null,null,null,null,null,null,null,78,"E"]
[null,null,null,null,null,null,null,null,null,null,null,79,"E"]
[null,null,null,null,null,null,null,null,null,null,null,80,"E"]
[null,null,null,null,null,null,null,null,null,null,null,81,"E"]
[null,null,null,null,null,null,null,null,null,null,null,82,"E"]
[null,null,null,null,null,null,null,null,null,null,null,83,"E"]
[null,null,null,null,null,null,null,null,null,null,null,84,"E"]
[null,null,null,null,null,null,null,null,null,null,null,85,"F"]
[null,null,null,null,null,null,null,null,null,null,null,86,"F"]
[null,null,null,null,null,null,null,null,null,null,null,87,"F"]
[null,null,null,null,null,null,null,null,null,null,null,88,"F"]
[null,null,null,null,null,null,null,null,null,null,null,89,"F"]
[null,null,null,null,null,null,null,null,null,null,null,90,"F"]
[null,null,null,null,null,null,null,null,null,null,null,91,"F"]
[null,null,null,null,null,null,null,null,null,null,null,92,"F"]
[null,null,null,null,null,null,null,null,null,null,null,93,"F"]
[null,null,null,null,null,null,null,null,null,null,null,94,"F"]
[null,null,null,null,null,null,null,null,null,null,null,95,"G"]
[null,null,null,null,null,null,null,null,null,null,null,96,"G"]
[null,null,null,null,null,null,null,null,null,null,null,97,"G"]
[null,null,null,null,null,null,null,null,null,null,null,98,"G"]
[null,null,null,null,null,null,null,null,null,null,null,99,"G"]
[null,null,null,null,null,null,null,null,null,null,null,100,"G"]
[null,null,null,null,null,null,null,null,null,null,null,101,"G"]
[null,null,null,null,null,null,null,null,null,null,null,102,"G"]
[null,null,null,null,null,null,null,null,null,null,null,103,"G"]
[null,null,null,null,null,null,null,null,null,null,null,104,"G"]
[null,null,null,null,null,null,null,null,null,null,null,105,"G"]
[null,null,null,null,null,null,null,null,null,null,null,106,"G"]
[null,null,null,null,null,null,null,null,null,null,null,107,"G"]
[null,null,null,null,null,null,null,null,null,null,null,108,"G"]
[null,null,null,null,null,null,null,null,null,null,null,109,"G"]
[null,null,null,null,null,null,null,null,null,null,null,110,"G"]
[null,null,null,null,null,null,null,null,null,null,null,111,"G"]
[null,null,null,null,null,null,null,null,null,null,null,112,"G"]
[null,null,null,null,null,null,null,null,null,null,null,113,"G"]
[null,null,null,null,null,null,null,null,null,null,null,114,"G"]
[null,null,null,null,null,null,null,null,null,null,null,115,"G"]